bitfinex-derivatives/quotes_BTCF0:USTF0_20250125
["timestamp","ask_amount","ask_price","bid_price","bid_amount"]
[1737780082522,0.71316381,104820.0,104810.0,0.21320874]
[1737780086926,0.88396405,104820.0,104810.0,0.21320874]
[1737780087319,0.52316405,104820.0,104810.0,0.21320874]
[1737780087519,1.24476405,104820.0,104810.0,0.21320874]
[1737780104841,1.18739777,104820.0,104810.0,0.21320874]
[1737780106832,1.24476405,104820.0,104810.0,0.21320874]
[1737780107036,1.18739777,104820.0,104810.0,0.21320874]
[1737780107332,1.24476405,104820.0,104810.0,0.21320874]
[1737780108639,1.18739777,104820.0,104810.0,0.21320874]
[1737780115042,1.24476405,104820.0,104810.0,0.21320874]
[1737780116842,1.18739777,104820.0,104810.0,0.21320874]
[1737780117750,1.24476405,104820.0,104810.0,0.21320874]
[1737780118949,1.18739777,104820.0,104810.0,0.21320874]
[1737780119443,1.24476405,104820.0,104810.0,0.21320874]
[1737780119753,1.18739777,104820.0,104810.0,0.21320874]
[1737780124055,1.18739777,104820.0,104810.0,0.17144702]
[1737780124548,1.18739777,104820.0,104810.0,0.21320875]
[1737780125463,1.01659753,104820.0,104810.0,0.21320875]
[1737780127159,1.01659753,104820.0,104810.0,0.27057503]
[1737780127951,1.01659753,104820.0,104810.0,0.17144702]
[1737780128150,1.01659753,104820.0,104810.0,0.2288133]
[1737780128354,1.01659753,104820.0,104810.0,0.17144702]
[1737780128554,1.18739777,104820.0,104810.0,0.17144702]
[1737780129055,1.24476405,104820.0,104810.0,0.17144702]
[1737780132062,1.24476405,104820.0,104810.0,0.21320875]
[1737780133762,1.01659753,104820.0,104810.0,0.21320875]
[1737780134163,1.01659753,104820.0,104810.0,0.24661813]
[1737780135865,1.07396381,104820.0,104810.0,0.24661813]
[1737780136666,1.01659753,104820.0,104810.0,0.24661813]
[1737780137660,1.18739777,104820.0,104810.0,0.24661813]
[1737780142162,1.24476405,104820.0,104810.0,0.24661813]
[1737780155572,1.24476405,104820.0,104810.0,0.07517111]
[1737780159476,1.24476405,104820.0,104810.0,0.24661813]
[1737780163065,1.18739777,104820.0,104810.0,0.24661813]
[1737780165976,1.03473377,104820.0,104810.0,0.45666341]
[1737780166176,1.03473377,104820.0,104810.0,0.3814923]
[1737780166581,1.03473377,104820.0,104810.0,0.41489928]
[1737780167286,1.03473377,104820.0,104810.0,0.3814923]
[1737780167683,1.18739777,104820.0,104810.0,0.45665799]
[1737780170279,0.98776765,104820.0,104810.0,0.68524901]
[1737780174985,1.07284731,104820.0,104810.0,0.68524901]
[1737780178691,1.07284731,104820.0,104810.0,0.45665799]
[1737780191088,0.98776765,104820.0,104810.0,0.45665799]
[1737780193898,0.83510365,104820.0,104810.0,0.42325102]
[1737780194103,0.83510365,104820.0,104810.0,0.45665836]
[1737780195590,0.83510365,104820.0,104810.0,0.68524938]
[1737780196703,0.83510365,104820.0,104810.0,0.61008332]
[1737780199605,0.83510365,104820.0,104810.0,0.6674496]
[1737780199905,0.83510365,104820.0,104810.0,0.49600258]
[1737780200503,0.47430365,104820.0,104810.0,0.49600258]
[1737780200707,0.47430365,104820.0,104810.0,0.4386363]
[1737780200905,0.47430365,104820.0,104810.0,0.49600258]
[1737780201707,0.47430365,104820.0,104810.0,0.61288949]
[1737780204001,0.47430365,104820.0,104810.0,0.49600258]
[1737780204401,0.47430365,104820.0,104810.0,0.4386363]
[1737780207111,0.44595578,104820.0,104810.0,0.4386363]
[1737780210315,0.44595578,104820.0,104810.0,0.61287258]
[1737780212417,0.44595578,104820.0,104810.0,0.57116864]
[1737780214014,0.44595578,104820.0,104810.0,0.51380236]
[1737780221730,0.44595578,104820.0,104810.0,0.57116864]
[1737780222027,0.44595578,104820.0,104810.0,0.51380236]
[1737780223620,0.44595578,104820.0,104810.0,0.57116864]
[1737780224722,0.44595578,104820.0,104810.0,0.51380236]
[1737780228916,0.44595578,104820.0,104810.0,0.55551726]
[1737780232125,0.55945943,104820.0,104810.0,1.07098068]
[1737780251742,0.19865943,104820.0,104810.0,1.0531809]
[1737780252046,0.0995323,104830.0,104820.0,0.152664]
[1737780252246,0.0995323,104830.0,104820.0,0.79685205]
[1737780252743,0.0995323,104830.0,104820.0,0.83856695]
[1737780252944,0.0995323,104830.0,104820.0,0.80516445]
[1737780256544,0.20294293,104840.0,104820.0,0.80516445]
[1737780256545,0.03214269,104840.0,104820.0,1.23660387]
[1737780256848,0.03214269,104840.0,104830.0,0.57081628]
[1737780257051,0.03214269,104840.0,104830.0,0.61256927]
[1737780260955,0.03214269,104840.0,104830.0,0.78400872]
[1737780262162,0.00014269,104840.0,104830.0,0.841375]
[1737780266955,0.00014269,104840.0,104830.0,0.78400872]
[1737780268869,0.00014269,104840.0,104830.0,0.841375]
[1737780271875,0.00014269,104840.0,104830.0,0.78400872]
[1737780272174,0.00014269,104840.0,104830.0,0.841375]
[1737780272369,0.00014269,104840.0,104830.0,0.78400872]
[1737780275573,0.00014269,104840.0,104830.0,0.841375]
[1737780278476,0.00014269,104840.0,104830.0,0.79962201]
[1737780278874,0.00014269,104840.0,104830.0,0.74225573]
[1737780280374,0.00014269,104840.0,104830.0,0.79962201]
[1737780280986,0.3608,104850.0,104840.0,0.26736756]
[1737780285885,0.3608,104850.0,104840.0,0.27688313]
[1737780286081,0.3608,104850.0,104840.0,0.30898313]
[1737780286488,0.3608,104850.0,104840.0,0.48059006]
[1737780286987,0.3608,104850.0,104840.0,0.52233732]
[1737780287176,0.3608,104850.0,104840.0,0.58313732]
[1737780297592,0.50280238,104850.0,104840.0,0.58313732]
[1737780308497,0.50280238,104850.0,104840.0,0.54139006]
[1737780312301,0.3608,104850.0,104840.0,0.36978313]
[1737780313605,0.3608,104850.0,104840.0,0.41153019]
[1737780313798,0.3608,104850.0,104840.0,0.45325082]
[1737780317001,0.47457017,104850.0,104840.0,0.97456568]
[1737780320998,0.47457017,104850.0,104840.0,1.20349691]
[1737780333528,0.47457017,104850.0,104840.0,1.16177628]
[1737780334438,0.47457017,104850.0,104840.0,1.20348727]
[1737780335137,0.47457017,104850.0,104840.0,0.9678909]
[1737780339632,0.47457017,104850.0,104840.0,0.8749909]
[1737780339934,0.47457017,104850.0,104840.0,0.81762462]
[1737780340134,0.47457017,104850.0,104840.0,0.8749909]
[1737780342245,0.47457017,104850.0,104840.0,1.11029124]
[1737780343140,0.47457017,104850.0,104840.0,0.74995006]
[1737780343141,0.68455745,104850.0,104840.0,0.74995006]
[1737780343539,1.04192373,104850.0,104840.0,0.74995006]
[1737780343740,0.98455745,104850.0,104840.0,0.29445383]
[1737780343940,1.04192373,104850.0,104840.0,0.14475383]
[1737780344142,1.04192373,104850.0,104840.0,0.01955383]
[1737780346251,0.152635,104840.0,104830.0,0.17178828]
[1737780346547,0.62816756,104840.0,104830.0,0.17178828]
[1737780347446,0.62846756,104840.0,104830.0,0.17178828]
[1737780349837,0.94104418,104840.0,104830.0,0.00014269]
[1737780357551,0.78840918,104840.0,104810.0,0.25662138]
[1737780357750,0.93163028,104820.0,104810.0,0.25662138]
[1737780358054,0.93163028,104820.0,104810.0,0.246175]
[1737780360358,0.874264,104820.0,104810.0,0.246175]
[1737780360857,0.874264,104820.0,104810.0,0.30354128]
[1737780366664,0.874264,104820.0,104810.0,0.34530069]
[1737780366961,0.874264,104820.0,104810.0,0.246175]
[1737780367161,0.874264,104820.0,104810.0,0.28793442]
[1737780367461,0.874264,104820.0,104810.0,0.3453007]
[1737780372475,1.07264568,104820.0,104810.0,0.3453007]
[1737780375172,0.91998168,104820.0,104810.0,0.3453007]
[1737780375370,0.19838168,104820.0,104810.0,0.7061007]
[1737780375672,0.14177638,104820.0,104810.0,0.7061007]
[1737780377375,0.14177638,104820.0,104810.0,0.74777853]
[1737780378785,0.14177638,104820.0,104810.0,0.38697853]
[1737780379481,0.14177638,104820.0,104810.0,0.74777853]
[1737780379978,0.53174293,104830.0,104810.0,0.59510353]
[1737780379979,0.50271907,104830.0,104810.0,0.59510353]
[1737780380180,0.50271907,104830.0,104820.0,0.21003028]
[1737780380485,0.50271907,104830.0,104820.0,0.2517897]
[1737780381086,0.50271907,104830.0,104820.0,0.21003028]
[1737780382783,0.50271907,104830.0,104820.0,0.26739656]
[1737780383090,0.50271907,104830.0,104820.0,0.25178517]
[1737780384586,0.47456395,104830.0,104820.0,0.25178517]
[1737780386083,0.47456395,104830.0,104820.0,0.26135593]
[1737780386480,0.47456395,104830.0,104820.0,0.31872221]
[1737780388593,0.55976163,104830.0,104820.0,0.31872221]
[1737780391687,0.55976163,104830.0,104820.0,0.26135593]
[1737780391893,0.55976163,104830.0,104820.0,0.31872221]
[1737780393194,0.55976163,104830.0,104820.0,0.26135593]
[1737780397400,0.55976163,104830.0,104820.0,0.20398965]
[1737780397800,0.55976163,104830.0,104820.0,0.26135593]
[1737780398899,0.55976163,104830.0,104820.0,0.38728221]
[1737780405602,0.55976163,104830.0,104820.0,0.31872221]
[1737780405802,0.55976163,104830.0,104820.0,0.38728221]
[1737780410000,0.55976163,104830.0,104820.0,0.42897027]
[1737780410705,0.55976163,104830.0,104820.0,0.38728221]
[1737780415811,0.47456395,104830.0,104820.0,0.38728221]
[1737780421514,0.47456395,104830.0,104820.0,0.42900564]
[1737780424515,0.47456395,104830.0,104820.0,0.38728221]
[1737780425015,0.47456395,104830.0,104820.0,0.42900604]
[1737780428117,0.47456395,104830.0,104820.0,0.38728221]
[1737780429518,0.47456395,104830.0,104820.0,0.42900728]
[1737780434211,0.47456395,104830.0,104820.0,0.38728221]
[1737780434411,0.47456395,104830.0,104820.0,0.42901066]
[1737780443529,0.61634033,104830.0,104820.0,0.42901066]
[1737780447835,0.47456395,104830.0,104820.0,0.42901066]
[1737780451439,0.47456395,104830.0,104820.0,0.38728221]
[1737780453740,0.47456395,104830.0,104820.0,0.42901435]
[1737780454940,0.4447405,104830.0,104820.0,0.44392607]
[1737780455137,0.4447405,104830.0,104820.0,0.42901435]
[1737780455341,0.4447405,104830.0,104820.0,0.44392607]
[1737780455843,0.4447405,104830.0,104820.0,0.42901435]
[1737780460156,0.4447405,104830.0,104820.0,0.38728221]
[1737780461248,0.4447405,104830.0,104820.0,0.42901433]
[1737780468066,0.4447405,104830.0,104820.0,0.38728221]
[1737780468265,0.4447405,104830.0,104820.0,0.42901465]
[1737780469759,0.4447405,104830.0,104820.0,0.37164837]
[1737780469960,0.4447405,104830.0,104820.0,0.42901465]
[1737780471568,0.4447405,104830.0,104820.0,0.38728221]
[1737780474063,0.4447405,104830.0,104820.0,0.26135593]
[1737780474365,0.50210678,104830.0,104820.0,0.20398965]
[1737780474572,0.65475678,104830.0,104820.0,0.20398965]
[1737780477076,0.5973905,104830.0,104820.0,0.26135593]
[1737780477283,0.64369586,104830.0,104820.0,0.26135593]
[1737780478969,0.70106214,104830.0,104820.0,0.26135593]
[1737780480572,0.5302619,104830.0,104820.0,0.26135593]
[1737780481276,0.47289562,104830.0,104820.0,0.26135593]
[1737780484372,0.47289562,104830.0,104820.0,0.21960104]
[1737780485078,0.62554562,104830.0,104820.0,0.21960104]
[1737780487783,0.62554562,104830.0,104820.0,0.26135796]
[1737780488473,0.47289562,104830.0,104820.0,0.31872424]
[1737780491280,0.53002382,104830.0,104820.0,0.31872424]
[1737780496883,0.53002382,104830.0,104820.0,0.35203734]
[1737780499894,0.19890458,104830.0,104820.0,0.36694923]
[1737780500788,0.19890458,104830.0,104820.0,0.35203734]
[1737780503893,0.11365976,104830.0,104820.0,0.35203734]
[1737780505193,0.11365976,104830.0,104820.0,0.31872424]
[1737780506793,0.11365976,104830.0,104820.0,0.78977089]
[1737780507294,0.11365976,104830.0,104820.0,0.82307619]
[1737780510197,0.11365976,104830.0,104820.0,0.88044247]
[1737780510403,0.31271931,104840.0,104830.0,0.26738256]
[1737780510602,0.31271931,104840.0,104830.0,0.79714478]
[1737780510804,0.19905292,104840.0,104830.0,0.79714478]
[1737780511005,0.16923323,104840.0,104830.0,0.81205462]
[1737780511397,0.16923323,104840.0,104830.0,0.75468834]
[1737780512004,0.16923323,104840.0,104830.0,0.7397785]
[1737780512304,0.16923323,104840.0,104830.0,0.3789785]
[1737780514204,0.05557024,104840.0,104830.0,0.3789785]
[1737780516006,0.05557024,104840.0,104830.0,0.43634478]
[1737780516304,0.05557024,104840.0,104830.0,0.3789785]
[1737780517707,0.05557024,104840.0,104830.0,0.43634478]
[1737780518006,0.05557024,104840.0,104830.0,0.3789785]
[1737780519199,0.05557024,104840.0,104830.0,0.79714478]
[1737780524809,0.50271907,104850.0,104830.0,0.64449478]
[1737780524810,0.36094269,104850.0,104830.0,0.64449478]
[1737780525010,0.36094269,104850.0,104840.0,0.26736856]
[1737780525223,0.36094269,104850.0,104840.0,0.34243078]
[1737780534421,0.36094269,104850.0,104840.0,0.35209819]
[1737780538217,0.50271907,104850.0,104840.0,0.35209819]
[1737780546530,0.50271907,104850.0,104840.0,0.31879289]
[1737780548429,0.50271907,104850.0,104840.0,0.35217048]
[1737780551640,0.14191907,104850.0,104840.0,0.77033676]
[1737780551840,0.14191907,104850.0,104840.0,0.81204949]
[1737780552140,0.91690004,104880.0,104850.0,0.152621]
[1737780552339,0.91690004,104880.0,104870.0,0.20995828]
[1737780552542,0.91690004,104880.0,104870.0,0.2517152]
[1737780556032,0.91690004,104880.0,104870.0,0.30908148]
[1737780556228,0.78824474,104880.0,104870.0,0.30905952]
[1737780557843,0.78824474,104880.0,104870.0,0.31879381]
[1737780558042,0.78824474,104880.0,104870.0,0.27705885]
[1737780558244,0.3608,104880.0,104870.0,0.27705885]
[1737780558647,0.3608,104880.0,104870.0,0.31879335]
[1737780558938,0.36094269,104890.0,104880.0,0.152577]
[1737780558939,0.00014269,104890.0,104880.0,0.152577]
[1737780559138,0.00014269,104890.0,104880.0,0.72480956]
[1737780559843,0.00014269,104890.0,104880.0,0.76653612]
[1737780560044,0.00014269,104890.0,104880.0,0.72480956]
[1737780563441,0.00014269,104890.0,104880.0,0.76653609]
[1737780566043,0.00014269,104890.0,104880.0,0.40573609]
[1737780566247,0.00014269,104890.0,104880.0,0.76653609]
[1737780575944,0.36094269,104890.0,104880.0,0.30664328]
[1737780578954,0.36094269,104890.0,104880.0,0.24194328]
[1737780579154,0.36094269,104890.0,104880.0,0.30624328]
[1737780582959,0.47421768,104890.0,104880.0,0.30624328]
[1737780584353,0.48381649,104890.0,104880.0,0.30624328]
[1737780585857,0.63637949,104890.0,104880.0,0.30624328]
[1737780590167,0.66526872,104890.0,104880.0,0.30624328]
[1737780598881,0.65566991,104890.0,104880.0,0.30624328]
[1737780600979,0.65566991,104890.0,104880.0,0.34781556]
[1737780603785,0.65566991,104890.0,104880.0,0.40518184]
[1737780604173,0.65566991,104890.0,104880.0,0.34781556]
[1737780604379,0.65566991,104890.0,104880.0,0.40518184]
[1737780604983,0.65566991,104890.0,104880.0,0.34781556]
[1737780606191,0.65566991,104890.0,104880.0,0.30624328]
[1737780611984,0.65566991,104890.0,104880.0,0.34769495]
[1737780612171,0.65566991,104890.0,104880.0,0.29032867]
[1737780612371,0.71303619,104890.0,104880.0,0.248877]
[1737780612583,0.65566991,104890.0,104880.0,0.0963]
[1737780612786,0.71303619,104890.0,104880.0,0.0963]
[1737780613081,0.65566991,104890.0,104880.0,0.0963]
[1737780618888,0.65566991,104890.0,104880.0,0.15366628]
[1737780619790,0.65566991,104890.0,104880.0,0.0963]
[1737780620087,0.8255824,104890.0,104880.0,0.0963]
[1737780622695,0.88294868,104890.0,104880.0,0.0963]
[1737780622886,0.152577,104880.0,104870.0,0.2285657]
[1737780623086,0.62810956,104880.0,104870.0,0.2285657]
[1737780623294,0.57074328,104880.0,104870.0,0.2285657]
[1737780623792,0.62810956,104880.0,104870.0,0.2285657]
[1737780624387,0.57074328,104880.0,104870.0,0.2285657]
[1737780625294,0.62810956,104880.0,104870.0,0.2285657]
[1737780627096,0.152592,104870.0,104860.0,0.09464269]
[1737780627288,0.57075828,104870.0,104860.0,0.09464269]
[1737780627696,0.57075828,104870.0,104860.0,0.15200897]
[1737780629991,0.57075828,104870.0,104860.0,0.09464269]
[1737780630890,0.57075828,104870.0,104860.0,0.15200897]
[1737780631091,0.82620919,104870.0,104860.0,0.15200897]
[1737780631796,0.82620919,104870.0,104860.0,0.09464269]
[1737780632499,0.82620919,104870.0,104860.0,0.15200897]
[1737780633198,0.82620919,104870.0,104860.0,0.09464269]
[1737780638102,0.71267545,104870.0,104860.0,0.09464269]
[1737780650108,0.88258794,104870.0,104860.0,0.09464269]
[1737780650903,0.152621,104850.0,104840.0,0.21142892]
[1737780651105,0.57078728,104850.0,104840.0,0.00143064]
[1737780651806,0.57078728,104850.0,104840.0,0.05879692]
[1737780653103,0.57078728,104850.0,104840.0,0.00143064]
[1737780653309,0.57078728,104850.0,104840.0,0.05879692]
[1737780654113,0.68434047,104850.0,104840.0,0.05879692]
[1737780654309,0.68434047,104850.0,104840.0,0.15289692]
[1737780656514,0.88261694,104850.0,104840.0,0.15289692]
[1737780657212,0.89229866,104850.0,104840.0,0.15289692]
[1737780659616,0.89229866,104850.0,104840.0,0.09553064]
[1737780659819,1.25309866,104850.0,104840.0,0.09553064]
[1737780660411,1.25309866,104850.0,104840.0,0.0941]
[1737780664225,1.11118149,104850.0,104840.0,0.0941]
[1737780665228,1.11118149,104850.0,104840.0,0.0304]
[1737780665522,0.152636,104840.0,104830.0,0.00014269]
[1737780665723,0.57080228,104840.0,104830.0,0.00014269]
[1737780666518,0.62816856,104840.0,104830.0,0.00014269]
[1737780668828,0.77018017,104840.0,104830.0,0.00014269]
[1737780673130,0.79808105,104840.0,104830.0,0.00014269]
[1737780684228,0.15265,104830.0,104820.0,0.064]
[1737780684527,0.57081628,104830.0,104820.0,0.064]
[1737780684922,0.78791628,104830.0,104820.0,0.064]
[1737780685730,0.84528256,104830.0,104820.0,0.064]
[1737780686124,0.78791628,104830.0,104820.0,0.064]
[1737780686428,0.62818256,104830.0,104820.0,0.064]
[1737780686631,0.62818256,104830.0,104810.0,0.03094269]
[1737780686632,0.26739756,104820.0,104810.0,0.03094269]
[1737780686833,0.84529756,104820.0,104810.0,0.03094269]
[1737780689837,0.84529756,104820.0,104810.0,0.09304269]
[1737780691341,0.85469498,104820.0,104810.0,0.09304269]
[1737780692239,0.63759498,104820.0,104810.0,0.09304269]
[1737780692937,0.94950405,104820.0,104810.0,0.09304269]
[1737780705765,0.80750747,104820.0,104810.0,0.09304269]
[1737780716271,0.152679,104810.0,104800.0,0.1]
[1737780716467,0.57084528,104810.0,104800.0,0.14176759]
[1737780717480,0.57084528,104810.0,104800.0,0.1]
[1737780717775,0.57084528,104810.0,104800.0,0.101]
[1737780719275,0.57084528,104810.0,104800.0,0.14276773]
[1737780720482,0.57084528,104810.0,104800.0,0.101]
[1737780721383,0.62821156,104810.0,104800.0,0.101]
[1737780721873,0.57084528,104810.0,104800.0,0.101]
[1737780722271,0.62821156,104810.0,104800.0,0.101]
[1737780722680,0.94029497,104810.0,104800.0,0.101]
[1737780724289,0.88292869,104810.0,104800.0,0.101]
[1737780724480,0.88292869,104810.0,104800.0,0.1]
[1737780725084,0.94029497,104810.0,104800.0,0.02543695]
[1737780725383,1.00309497,104810.0,104800.0,0.02543695]
[1737780726482,0.86092405,104810.0,104800.0,0.02543695]
[1737780729581,0.80355777,104810.0,104800.0,0.02543695]
[1737780729783,0.74075777,104810.0,104800.0,0.02543695]
[1737780733878,0.71291419,104810.0,104800.0,0.02543695]
[1737780740591,0.74075777,104810.0,104800.0,0.02543695]
[1737780742399,0.79812405,104810.0,104800.0,0.02543695]
[1737780742693,0.86042405,104810.0,104800.0,0.02543695]
[1737780748499,0.69051156,104810.0,104800.0,0.02543695]
[1737780760221,0.69051156,104810.0,104800.0,0.00632451]
[1737780760415,0.152694,104800.0,104790.0,0.00014269]
[1737780760713,0.62822656,104800.0,104790.0,0.00014269]
[1737780760900,0.66052656,104800.0,104790.0,0.00014269]
[1737780763516,0.86000077,104800.0,104790.0,0.00014269]
[1737780765310,0.86934213,104800.0,104790.0,0.00014269]
[1737780768521,0.92670841,104800.0,104790.0,0.00014269]
[1737780770118,0.89440841,104800.0,104790.0,0.00014269]
[1737780770321,0.89440841,104800.0,104770.0,0.0317]
[1737780770322,0.152723,104780.0,104770.0,0.0317]
[1737780770521,0.98905556,104780.0,104770.0,0.0317]
[1737780775025,1.15947399,104780.0,104770.0,0.0317]
[1737780778935,1.16922194,104780.0,104770.0,0.0317]
[1737780781842,1.16922194,104780.0,104770.0,0.0320131]
[1737780786751,1.14079029,104780.0,104770.0,0.0320131]
[1737780794448,0.99880351,104780.0,104770.0,0.0320131]
[1737780797452,0.99880351,104780.0,104770.0,0.0003131]
[1737780798455,1.16922194,104780.0,104770.0,0.0003131]
[1737780803459,1.22658822,104780.0,104770.0,0.0003131]
[1737780803859,1.16922194,104780.0,104770.0,0.0003131]
[1737780811659,0.99880351,104780.0,104770.0,0.0003131]
[1737780836986,1.16966875,104780.0,104770.0,0.0003131]
[1737780850598,0.99880351,104780.0,104770.0,0.0003131]
[1737780855995,0.84608051,104780.0,104760.0,0.26550759]
[1737780856191,0.57090328,104770.0,104760.0,0.26550759]
[1737780858391,0.57059018,104770.0,104760.0,0.26550759]
[1737780859295,0.57059018,104770.0,104760.0,0.0942]
[1737780859296,0.71297604,104770.0,104760.0,0.0942]
[1737780863603,0.88383907,104770.0,104760.0,0.0942]
[1737780870312,0.74145321,104770.0,104760.0,0.0942]
[1737780892825,0.71306652,104770.0,104760.0,0.26550759]
[1737780904131,0.71306652,104770.0,104760.0,0.0942]
[1737780913532,0.71306652,104770.0,104750.0,0.55273268]
[1737780913731,0.62828456,104760.0,104750.0,0.39996868]
[1737780916335,0.26748456,104760.0,104750.0,0.39996868]
[1737780916534,0.98908456,104760.0,104750.0,0.39996868]
[1737780917543,0.98908456,104760.0,104750.0,0.40096868]
[1737780918639,0.98908456,104760.0,104750.0,0.17240298]
[1737780918640,1.1315609,104760.0,104750.0,0.17240298]
[1737780921543,1.14098916,104760.0,104750.0,0.17240298]
[1737780926950,1.14098916,104760.0,104750.0,0.00109539]
[1737780935250,1.14098916,104760.0,104750.0,0.001]
[1737780936757,0.152767,104750.0,104740.0,0.26640759]
[1737780936949,0.57093328,104750.0,104740.0,0.26640759]
[1737780938860,0.57093328,104750.0,104740.0,0.0951]
[1737780939159,0.57093328,104750.0,104740.0,0.0961]
[1737780941253,0.57093328,104750.0,104740.0,0.0637]
[1737780943868,0.71325959,104750.0,104740.0,0.0637]
[1737780945563,0.80675959,104750.0,104740.0,0.001]
[1737780947561,0.86412587,104750.0,104740.0,0.001]
[1737780950067,0.152781,104740.0,104730.0,0.17273975]
[1737780950266,0.62831356,104740.0,104730.0,0.17273975]
[1737780950961,0.62831356,104740.0,104730.0,0.00143216]
[1737780952765,0.57094728,104740.0,104730.0,0.00143216]
[1737780953272,0.57094728,104740.0,104730.0,0.00243216]
[1737780953461,0.62831356,104740.0,104730.0,0.00243216]
[1737780953664,0.63803012,104740.0,104730.0,0.00243216]
[1737780955272,0.75178196,104740.0,104730.0,0.00243216]
[1737780959090,0.69441568,104740.0,104730.0,0.00243216]
[1737780962093,0.75178196,104740.0,104730.0,0.00243216]
[1737780968492,0.152825,104710.0,104700.0,0.38582412]
[1737780968691,0.15284,104700.0,104690.0,0.3428577]
[1737780968990,0.74863884,104700.0,104690.0,0.2814721]
[1737780969193,0.69127256,104700.0,104690.0,0.30034014]
[1737780969584,0.74863884,104700.0,104690.0,0.30034014]
[1737780969794,0.69127256,104700.0,104690.0,0.30034014]
[1737780969983,0.74863884,104700.0,104690.0,0.30034014]
[1737780970385,0.69127256,104700.0,104690.0,0.30034014]
[1737780971294,0.70097812,104700.0,104690.0,0.30034014]
[1737780973890,0.7583444,104700.0,104690.0,0.30034014]
[1737780975297,0.8716542,104700.0,104690.0,0.01886804]
[1737780977099,0.7188142,104700.0,104660.0,0.16230664]
[1737780977398,0.41816628,104670.0,104660.0,0.25790664]
[1737780978099,0.41816628,104670.0,104660.0,0.248494]
[1737780979794,0.57104928,104670.0,104660.0,0.248494]
[1737780980195,0.152898,104660.0,104650.0,0.16238222]
[1737780980401,0.57106428,104660.0,104650.0,0.16238222]
[1737780982801,0.57106428,104660.0,104650.0,0.152912]
[1737780984098,0.57206428,104660.0,104650.0,0.152912]
[1737780984901,0.514698,104660.0,104650.0,0.152912]
[1737780985102,0.513698,104660.0,104650.0,0.152912]
[1737780985304,0.513698,104660.0,104650.0,0.155912]
[1737780985898,0.57106428,104660.0,104650.0,0.003]
[1737780986199,0.57106428,104660.0,104650.0,0.155912]
[1737780987505,0.57106428,104660.0,104650.0,0.152912]
[1737780989098,0.513698,104660.0,104650.0,0.152912]
[1737780993412,0.57106428,104660.0,104650.0,0.152912]
[1737780993609,0.513698,104660.0,104650.0,0.152912]
[1737780996010,0.57106428,104660.0,104650.0,0.152912]
[1737780998815,0.65575244,104660.0,104650.0,0.152912]
[1737781000007,0.71311872,104660.0,104650.0,0.152912]
[1737781000412,0.65575244,104660.0,104650.0,0.152912]
[1737781002218,0.71339059,104660.0,104650.0,0.152912]
[1737781002610,0.14232631,104660.0,104650.0,0.21027828]
[1737781005716,0.25601138,104660.0,104650.0,0.21027828]
[1737781006315,0.25601138,104660.0,104650.0,0.152912]
[1737781007814,0.40890938,104660.0,104650.0,0.152912]
[1737781009230,0.29522431,104660.0,104650.0,0.152912]
[1737781010121,0.29522431,104660.0,104650.0,0.15320133]
[1737781013127,0.35259059,104660.0,104650.0,0.15320133]
[1737781014120,0.77075687,104660.0,104650.0,0.00028933]
[1737781014526,0.71339059,104660.0,104650.0,0.00028933]
[1737781015026,0.77075687,104660.0,104650.0,0.00028933]
[1737781015228,0.71339059,104660.0,104650.0,0.00028933]
[1737781015816,0.71339059,104660.0,104650.0,0.21056761]
[1737781015817,0.29522431,104660.0,104650.0,0.21056761]
[1737781016834,0.29522431,104660.0,104650.0,0.15320133]
[1737781017330,0.32376103,104660.0,104650.0,0.15320133]
[1737781017928,0.68456103,104660.0,104650.0,0.15320133]
[1737781018129,0.32376103,104660.0,104650.0,0.15320133]
[1737781018834,0.17086303,104660.0,104650.0,0.51400133]
[1737781020032,0.11378245,104660.0,104650.0,0.57136761]
[1737781024443,0.11378245,104660.0,104650.0,0.62873389]
[1737781026134,0.11378245,104660.0,104650.0,0.71077737]
[1737781027135,0.53194873,104660.0,104650.0,0.15320133]
[1737781027332,0.62748045,104660.0,104650.0,0.15320133]
[1737781027532,0.6871466,104660.0,104650.0,0.00028933]
[1737781027746,0.62978032,104660.0,104650.0,0.00028933]
[1737781028248,0.6871466,104660.0,104650.0,0.00028933]
[1737781028547,0.7507466,104660.0,104650.0,0.00028933]
[1737781029046,0.69338032,104660.0,104650.0,0.15320133]
[1737781029848,0.66018032,104660.0,104650.0,0.15320133]
[1737781030139,0.59898032,104660.0,104650.0,0.15320133]
[1737781032043,0.62748045,104660.0,104650.0,0.15320133]
[1737781033450,0.56226668,104660.0,104640.0,0.2290168]
[1737781033749,0.60139623,104650.0,104640.0,0.2290168]
[1737781037547,0.76972251,104650.0,104630.0,0.24062223]
[1737781037744,0.76972251,104650.0,104640.0,0.0943]
[1737781040456,0.62749445,104650.0,104640.0,0.0943]
[1737781040846,0.62749445,104650.0,104640.0,0.247227]
[1737781041447,0.11378245,104650.0,104640.0,0.247227]
[1737781041656,0.11378245,104650.0,104640.0,0.33491123]
[1737781044755,0.23804718,104650.0,104640.0,0.247227]
[1737781045058,0.59884718,104650.0,104640.0,0.247227]
[1737781045252,0.23804718,104650.0,104640.0,0.247227]
[1737781045856,0.23804718,104650.0,104640.0,0.33491123]
[1737781046063,0.23804718,104650.0,104640.0,0.34428197]
[1737781046263,0.23804718,104650.0,104640.0,0.25659774]
[1737781048859,0.08513518,104650.0,104640.0,0.25659774]
[1737781057763,0.08513518,104650.0,104640.0,0.31414329]
[1737781059262,0.19891763,104650.0,104640.0,0.31414329]
[1737781060762,0.19891763,104650.0,104640.0,0.37168884]
[1737781060968,0.19891763,104650.0,104640.0,0.73248884]
[1737781061266,0.19891763,104650.0,104640.0,0.77417035]
[1737781061961,0.11378245,104650.0,104640.0,0.77417035]
[1737781062465,0.14222806,104660.0,104640.0,0.62124335]
[1737781062659,0.14222806,104660.0,104650.0,0.57125755]
[1737781065263,0.14222806,104660.0,104650.0,0.6288031]
[1737781065469,0.08524077,104660.0,104650.0,0.57125755]
[1737781068771,0.08538346,104670.0,104650.0,0.64736235]
[1737781068976,0.08538346,104670.0,104660.0,0.37412355]
[1737781069461,0.08538346,104670.0,104660.0,0.4316691]
[1737781071476,0.08538346,104670.0,104660.0,0.37412355]
[1737781074674,0.08538346,104670.0,104660.0,0.44142669]
[1737781076383,0.08538346,104670.0,104660.0,0.80222669]
[1737781079785,0.00014269,104670.0,104660.0,0.80222669]
[1737781091991,0.00014269,104670.0,104660.0,0.80214669]
[1737781092686,0.08538346,104670.0,104660.0,1.03116349]
[1737781100297,0.08538346,104670.0,104660.0,1.07289569]
[1737781102996,0.08538346,104670.0,104660.0,1.07281569]
[1737781105391,0.08538346,104670.0,104660.0,1.11314038]
[1737781108397,0.08538346,104670.0,104660.0,1.39925483]
[1737781109397,0.08538346,104670.0,104660.0,1.35893014]
[1737781109794,0.08538346,104670.0,104660.0,1.28981014]
[1737781109993,0.08538346,104670.0,104660.0,1.30142459]
[1737781114599,0.08538346,104670.0,104660.0,1.30138459]
[1737781118595,0.08538346,104670.0,104660.0,1.01527014]
[1737781122599,0.08538346,104670.0,104660.0,0.78625334]